bitfinex/quotes_BTCUSD_20230111
["timestamp","ask_amount","ask_price","bid_price","bid_amount"]
[1673427418327,1.13147968,17438.0,17437.0,0.02788742]
[1673427419889,0.77205668,17438.0,17437.0,0.02788742]
[1673427420110,1.13147968,17438.0,17437.0,0.02788742]
[1673427420355,0.60051909,17438.0,17437.0,0.02788742]
[1673427421675,0.95994209,17438.0,17437.0,0.02788742]
[1673427421931,1.13147968,17438.0,17437.0,0.02788742]
[1673427422267,0.95994209,17438.0,17437.0,0.02788742]
[1673427422684,0.60051909,17438.0,17437.0,0.02788742]
[1673427423461,0.60051909,17438.0,17437.0,0.19987406]
[1673427423734,0.60051909,17438.0,17437.0,0.02788742]
[1673427423961,0.60051909,17438.0,17437.0,0.19987406]
[1673427424227,0.11602761,17438.0,17437.0,1.06047551]
[1673427424495,0.11602761,17438.0,17437.0,1.53328865]
[1673427425008,0.11602761,17438.0,17437.0,2.68047058]
[1673427425258,0.11602761,17438.0,17437.0,3.28047058]
[1673427426550,0.11602761,17438.0,17437.0,3.45250863]
[1673427427085,0.11602761,17438.0,17437.0,4.02600163]
[1673427427354,0.11602761,17438.0,17437.0,5.38842449]
[1673427427606,0.11592082,17438.0,17437.0,5.1305051]
[1673427429378,0.11592082,17438.0,17437.0,4.95871723]
[1673427434803,0.11592082,17438.0,17437.0,5.38832538]
[1673427435126,0.11592082,17438.0,17437.0,5.1305051]
[1673427435325,0.11592082,17438.0,17437.0,4.95863297]
[1673427435552,0.11592082,17438.0,17437.0,5.1305051]
[1673427435803,0.11592082,17438.0,17437.0,5.38824058]
[1673427436062,0.11592082,17438.0,17437.0,5.1305051]
[1673427436317,0.11592082,17438.0,17437.0,4.95862168]
[1673427436576,0.11592082,17438.0,17437.0,5.38822983]
[1673427437095,0.11592082,17438.0,17437.0,5.1305051]
[1673427437365,0.11592082,17438.0,17437.0,4.95860065]
[1673427439416,0.11592082,17438.0,17437.0,5.1305051]
[1673427446751,0.11592082,17438.0,17437.0,4.95850422]
[1673427447000,0.11592082,17438.0,17437.0,5.1305051]
[1673427447267,0.11592082,17438.0,17437.0,4.95850385]
[1673427447518,0.11592082,17438.0,17437.0,5.388112]
[1673427447811,0.11592082,17438.0,17437.0,5.1305051]
[1673427450564,0.1158539,17438.0,17437.0,5.1305051]
[1673427453850,0.1158539,17438.0,17437.0,5.4305051]
[1673427454099,0.1158539,17438.0,17437.0,4.78648041]
[1673427454381,0.1158539,17438.0,17437.0,5.08648041]
[1673427456213,0.1158539,17438.0,17437.0,4.78648041]
[1673427457251,0.1158539,17438.0,17437.0,5.08648041]
[1673427457528,0.1158539,17438.0,17437.0,4.78648041]
[1673427457790,0.1158539,17438.0,17437.0,5.08648041]
[1673427458350,0.1158539,17438.0,17437.0,4.78648041]
[1673427459128,0.1158539,17438.0,17437.0,4.35687226]
[1673427460463,0.1158539,17438.0,17437.0,4.65687226]
[1673427460967,0.1158539,17438.0,17437.0,4.35687226]
[1673427462038,0.1158539,17438.0,17437.0,4.7864463]
[1673427463627,0.1158539,17438.0,17437.0,3.99744926]
[1673427463880,0.1158539,17438.0,17437.0,4.78658513]
[1673427465470,0.1158539,17438.0,17437.0,3.99744926]
[1673427466481,0.1158539,17438.0,17437.0,4.35687226]
[1673427466736,0.1158539,17438.0,17437.0,4.65687226]
[1673427467247,0.1158539,17438.0,17437.0,5.81788074]
[1673427467757,0.75935728,17440.0,17438.0,1.00109613]
[1673427468018,0.75935728,17440.0,17439.0,2.22167335]
[1673427469804,0.75920728,17440.0,17439.0,2.22167335]
[1673427470302,0.83720728,17440.0,17439.0,2.23067335]
[1673427474387,0.78162483,17440.0,17439.0,2.40258143]
[1673427475408,0.78162483,17440.0,17439.0,2.97600843]
[1673427476450,0.61712483,17440.0,17439.0,3.54943543]
[1673427477504,0.61712483,17440.0,17439.0,4.27022305]
[1673427477769,0.61712483,17440.0,17439.0,4.62964605]
[1673427478770,0.61712483,17440.0,17439.0,4.62964089]
[1673427479287,0.61712483,17440.0,17439.0,4.62962426]
[1673427479566,0.61712483,17440.0,17439.0,4.28582989]
[1673427480124,0.61712483,17440.0,17439.0,4.28727077]
[1673427480856,0.08492483,17440.0,17439.0,4.28727077]
[1673427481137,0.08492483,17440.0,17439.0,3.85750057]
[1673427481685,0.08492483,17440.0,17439.0,4.28724221]
[1673427482705,0.08492483,17440.0,17439.0,3.92781921]
[1673427483465,0.08492483,17440.0,17439.0,4.27157811]
[1673427484226,0.08492483,17440.0,17439.0,4.63100111]
[1673427484737,0.08492483,17440.0,17439.0,4.27157811]
[1673427486033,0.08492483,17440.0,17439.0,4.27020927]
[1673427486295,0.08492483,17440.0,17439.0,4.09828832]
[1673427488929,0.08492483,17440.0,17439.0,4.27020927]
[1673427492280,0.0848276,17440.0,17439.0,4.27020927]
[1673427493857,0.0848276,17440.0,17439.0,3.92645037]
[1673427497981,0.0848276,17440.0,17439.0,4.27020719]
[1673427498299,0.0848276,17440.0,17439.0,3.92645037]
[1673427498554,0.0848276,17440.0,17439.0,4.27020736]
[1673427498813,0.0848276,17440.0,17439.0,4.2702077]
[1673427503489,0.0848276,17440.0,17439.0,3.92645037]
[1673427506358,0.0848276,17440.0,17439.0,3.49670873]
[1673427511825,0.0848276,17440.0,17439.0,3.79670873]
[1673427512666,0.0848276,17440.0,17439.0,3.49670873]
[1673427513854,0.0848276,17440.0,17439.0,3.79670873]
[1673427514106,0.0848276,17440.0,17439.0,3.49670873]
[1673427514359,0.08473905,17440.0,17439.0,3.49670873]
[1673427516167,0.08473905,17440.0,17439.0,3.79670873]
[1673427516695,0.00123108,17441.0,17440.0,0.87071782]
[1673427516955,0.00123108,17441.0,17440.0,3.42352989]
[1673427517210,0.00123108,17441.0,17440.0,3.99692389]
[1673427518237,0.00123108,17441.0,17440.0,4.13692389]
[1673427519263,0.00123108,17441.0,17440.0,4.43692389]
[1673427519534,0.00123108,17441.0,17440.0,4.13692389]
[1673427521602,0.00123108,17441.0,17440.0,3.77750089]
[1673427522951,0.00123108,17441.0,17440.0,4.13692389]
[1673427523170,0.00123108,17441.0,17440.0,3.77750089]
[1673427523427,0.00123108,17441.0,17440.0,4.07750089]
[1673427523685,0.00123108,17441.0,17440.0,4.13692389]
[1673427523955,0.00123108,17441.0,17440.0,3.77750089]
[1673427524226,0.00123108,17441.0,17440.0,4.13692389]
[1673427524507,0.00123108,17441.0,17440.0,4.43692389]
[1673427524969,0.00123108,17441.0,17440.0,4.5663845]
[1673427525226,0.00123108,17441.0,17440.0,4.43692389]
[1673427525484,0.00123108,17441.0,17440.0,4.13692389]
[1673427525704,0.00123108,17441.0,17440.0,4.20695658]
[1673427526770,0.00123108,17441.0,17440.0,4.50695658]
[1673427527028,0.00123108,17441.0,17440.0,4.43692389]
[1673427528553,0.00123108,17441.0,17440.0,4.07750089]
[1673427529036,0.00123108,17441.0,17440.0,4.43692389]
[1673427529769,0.00123108,17441.0,17440.0,4.07750089]
[1673427530279,0.00123108,17441.0,17440.0,4.43692389]
[1673427531539,0.00123108,17441.0,17440.0,3.87770361]
[1673427531805,0.00123108,17441.0,17440.0,5.03891131]
[1673427532065,0.00123108,17441.0,17440.0,5.17602041]
[1673427532345,0.00123108,17441.0,17440.0,4.52379729]
[1673427532598,0.00123108,17441.0,17440.0,4.55761763]
[1673427532817,0.00123108,17441.0,17440.0,5.17559224]
[1673427533942,0.00123108,17441.0,17440.0,5.7829712]
[1673427534199,0.00123108,17441.0,17440.0,5.17559224]
[1673427535243,0.00123108,17441.0,17440.0,4.04220361]
[1673427535507,0.00123108,17441.0,17440.0,5.17547233]
[1673427536829,0.00123126,17442.0,17441.0,0.30010912]
[1673427537119,0.00123126,17442.0,17441.0,4.28239425]
[1673427537390,0.00123126,17442.0,17441.0,3.72624919]
[1673427537650,0.00123126,17442.0,17441.0,4.34503128]
[1673427537922,0.00123126,17442.0,17441.0,4.8604453]
[1673427539440,0.00123126,17442.0,17441.0,5.0024453]
[1673427540993,0.00123126,17442.0,17441.0,5.01643979]
[1673427541242,0.00123126,17442.0,17441.0,3.86824919]
[1673427541526,0.00123126,17442.0,17441.0,4.48695498]
[1673427542051,0.00123126,17442.0,17441.0,5.002369]
[1673427542300,0.00123126,17442.0,17441.0,4.48695498]
[1673427542589,0.00123126,17442.0,17441.0,5.03175265]
[1673427542853,0.00123126,17442.0,17441.0,4.41304686]
[1673427543116,0.00123126,17442.0,17441.0,5.54780847]
[1673427543678,0.00123126,17442.0,17441.0,5.0030108]
[1673427543957,0.00123126,17442.0,17441.0,5.68880546]
[1673427545519,0.00123126,17442.0,17441.0,5.0030108]
[1673427545771,0.00123126,17442.0,17441.0,5.5941543]
[1673427546597,0.00123126,17442.0,17441.0,5.48460448]
[1673427546857,0.00123126,17442.0,17441.0,6.07855215]
[1673427548148,0.00140576,17443.0,17442.0,0.95645361]
[1673427548400,0.00140576,17443.0,17442.0,5.04203821]
[1673427548950,0.00140576,17443.0,17442.0,5.34203821]
[1673427549216,0.00140576,17443.0,17442.0,6.04122316]
[1673427549470,0.00140576,17443.0,17442.0,6.20572316]
[1673427549719,0.00140576,17443.0,17442.0,5.64553821]
[1673427550232,0.00140576,17443.0,17442.0,6.23948588]
[1673427550990,0.00140576,17443.0,17442.0,6.40368588]
[1673427553061,0.00140576,17443.0,17442.0,6.48881495]
[1673427553308,0.00140576,17443.0,17442.0,6.49731495]
[1673427553801,7.6e-07,17443.0,17442.0,10.03614025]
[1673427554109,0.01392559,17444.0,17442.0,10.03614025]
[1673427554297,0.01392559,17444.0,17443.0,5.58904952]
[1673427554547,0.01392559,17444.0,17443.0,7.50378231]
[1673427554797,0.01392559,17444.0,17443.0,5.12945701]
[1673427555064,0.01392559,17444.0,17443.0,6.74354791]
[1673427555319,0.01392559,17444.0,17443.0,7.5031907]
[1673427555578,0.01392559,17444.0,17443.0,7.6431907]
[1673427555815,0.01392559,17444.0,17443.0,8.8315907]
[1673427556580,0.01392559,17444.0,17443.0,7.9695907]
[1673427556831,3.47928709,17449.0,17447.0,0.00277188]
[1673427557082,3.47928709,17449.0,17447.0,2.80986061]
[1673427557083,0.63593877,17449.0,17447.0,2.80986061]
[1673427557329,0.63593877,17449.0,17447.0,3.28267375]
[1673427557330,0.58419281,17449.0,17447.0,3.28267375]
[1673427557590,0.58419281,17449.0,17447.0,4.90029466]
[1673427557871,0.58419281,17449.0,17447.0,4.90036046]
[1673427558094,0.58419281,17449.0,17447.0,5.98347051]
[1673427558342,0.01579166,17448.0,17447.0,4.90036046]
[1673427558599,0.01579166,17448.0,17447.0,5.67105423]
[1673427558854,0.01579166,17448.0,17447.0,4.35333438]
[1673427559374,0.01579166,17448.0,17447.0,3.72164061]
[1673427559596,0.01579166,17448.0,17447.0,4.37460272]
[1673427559843,0.01149396,17448.0,17447.0,4.20323037]
[1673427560355,0.01149396,17448.0,17447.0,4.28334331]
[1673427560880,0.01149396,17448.0,17447.0,3.80775829]
[1673427561379,0.01149396,17448.0,17447.0,4.40170596]
[1673427561666,0.01149396,17448.0,17447.0,4.84472893]
[1673427562874,0.01149396,17448.0,17447.0,4.14480172]
[1673427563154,0.01149396,17448.0,17447.0,4.32019646]
[1673427563387,0.01149396,17448.0,17447.0,5.29144105]
[1673427563641,0.01149396,17448.0,17447.0,4.27948417]
[1673427563899,0.01149396,17448.0,17447.0,4.75954236]
[1673427564222,0.01149396,17448.0,17447.0,4.27948417]
[1673427564658,0.01149396,17448.0,17447.0,4.81006242]
[1673427564907,0.01149396,17448.0,17447.0,4.37057759]
[1673427565176,0.01149396,17448.0,17447.0,4.80998561]
[1673427565439,0.01149396,17448.0,17447.0,4.75956364]
[1673427565703,0.01149396,17448.0,17447.0,6.2413251]
[1673427565957,0.01669281,17449.0,17448.0,0.84447421]
[1673427566206,0.01669281,17449.0,17448.0,5.90860628]
[1673427566468,0.01669281,17449.0,17448.0,5.53630495]
[1673427566735,0.01669281,17449.0,17448.0,5.70080495]
[1673427568247,0.01669281,17449.0,17448.0,5.5290177]
[1673427568488,0.01669281,17449.0,17448.0,5.84080495]
[1673427568745,0.01669281,17449.0,17448.0,5.66901828]
[1673427570625,0.01669281,17449.0,17448.0,5.84080495]
[1673427570840,0.01669281,17449.0,17448.0,5.66889913]
[1673427574610,0.01669281,17449.0,17448.0,5.85143033]
[1673427574875,0.01669281,17449.0,17448.0,5.68030119]
[1673427575163,0.01669281,17449.0,17448.0,4.5340435]
[1673427575424,0.01669281,17449.0,17448.0,5.01215113]
[1673427575694,0.01669281,17449.0,17448.0,6.15838795]
[1673427576715,1.0001,17450.0,17449.0,0.99239524]
[1673427577053,1.0001,17450.0,17449.0,3.56283969]
[1673427577296,1.0001,17450.0,17449.0,2.73253891]
[1673427578348,1.0001,17450.0,17449.0,3.17253891]
[1673427578622,1.0001,17450.0,17449.0,2.87253891]
[1673427578901,1.0001,17450.0,17449.0,3.17253891]
[1673427579718,1.0001,17450.0,17449.0,2.87253891]
[1673427581779,1.0001,17450.0,17449.0,3.17253891]
[1673427582303,1.0001,17450.0,17449.0,3.53196191]
[1673427582829,1.0001,17450.0,17449.0,3.40283969]
[1673427583083,1.0001,17450.0,17449.0,2.87253891]
[1673427583348,1.0001,17450.0,17449.0,3.17253891]
[1673427583655,1.0001,17450.0,17449.0,3.70283969]
[1673427583869,1.0001,17450.0,17449.0,3.34341669]
[1673427584366,1.0001,17450.0,17449.0,3.70283969]
[1673427584872,1.0001,17450.0,17449.0,3.34341669]
[1673427585932,1.0001,17450.0,17449.0,4.74593329]
[1673427586195,1.0001,17450.0,17449.0,3.9591076]
[1673427586450,1.0001,17450.0,17449.0,3.5996846]
[1673427586685,1.0001,17450.0,17449.0,4.74593659]
[1673427586937,1.0001,17450.0,17449.0,5.54247112]
[1673427587207,1.0001,17450.0,17449.0,4.44593659]
[1673427587493,1.0001,17450.0,17449.0,4.44595724]
[1673427587751,1.0001,17450.0,17449.0,3.2996846]
[1673427588006,1.0001,17450.0,17449.0,3.04341669]
[1673427588257,1.0001,17450.0,17449.0,2.44946902]
[1673427589025,1.0001,17450.0,17449.0,4.58816194]
[1673427589277,1.0001,17450.0,17449.0,4.94758494]
[1673427589531,1.0001,17450.0,17449.0,5.11871408]
[1673427590810,1.0001,17450.0,17449.0,5.2906199]
[1673427592102,1.0001,17450.0,17449.0,5.54772514]
[1673427592354,1.0001,17450.0,17449.0,5.2906199]
[1673427592645,1.0001,17450.0,17449.0,4.9311969]
[1673427592864,1.0001,17450.0,17449.0,4.58918998]
[1673427593122,1.0001,17450.0,17449.0,4.93221612]
[1673427593377,1.0001,17450.0,17449.0,4.58918998]
[1673427594135,1.0001,17450.0,17449.0,4.28918998]
[1673427594388,1.0001,17450.0,17449.0,4.63222217]
[1673427598029,1.0001,17450.0,17449.0,4.49222217]
[1673427598539,1.0001,17450.0,17449.0,4.63222217]
[1673427598796,1.0001,17450.0,17449.0,4.28918998]
[1673427599314,1.00000559,17450.0,17449.0,4.63240122]
[1673427599559,1.00000559,17450.0,17449.0,4.49240122]
[1673427599808,1.00000559,17450.0,17449.0,4.28818998]
[1673427600628,1.00000559,17450.0,17449.0,4.58818998]
[1673427601389,1.00000559,17450.0,17449.0,4.16001625]
[1673427601637,1.00000559,17450.0,17449.0,4.2890431]
[1673427601894,1.00000559,17450.0,17449.0,4.2873361]
[1673427602916,1.00000559,17450.0,17449.0,4.51773225]
[1673427603174,0.7269,17452.0,17450.0,0.97690091]
[1673427603437,0.7269,17452.0,17451.0,3.51703244]
[1673427603709,0.7269,17452.0,17451.0,3.32922838]
[1673427604227,0.7269,17452.0,17451.0,3.3292082]
[1673427604489,0.7269,17452.0,17451.0,3.85608491]
[1673427604732,0.7267,17452.0,17451.0,4.02772403]
[1673427605561,0.7267,17452.0,17451.0,4.16772403]
[1673427608895,0.23755635,17454.0,17453.0,0.3]
[1673427609166,0.23755635,17454.0,17453.0,0.87303383]
[1673427609455,0.23755635,17454.0,17453.0,1.04457862]
[1673427609689,0.54412477,17454.0,17453.0,0.74457862]
[1673427610198,0.54412477,17454.0,17453.0,0.57303383]
[1673427610454,0.54412477,17454.0,17453.0,0.81457862]
[1673427610735,0.54412477,17454.0,17453.0,0.64303383]
[1673427610965,0.54412477,17454.0,17453.0,0.81457862]
[1673427613037,0.54412477,17454.0,17453.0,0.81463862]
[1673427613264,0.18470177,17454.0,17453.0,0.81463862]
[1673427613600,0.18470177,17454.0,17453.0,1.11463862]
[1673427613819,0.18470177,17454.0,17453.0,0.81463862]
[1673427614073,0.54412477,17454.0,17453.0,0.81463862]
[1673427614581,0.54412477,17454.0,17453.0,0.64309383]
[1673427616126,0.54412477,17454.0,17453.0,0.07006]
[1673427616663,0.59942177,17454.0,17453.0,0.07006]
[1673427616930,1.88525694,17454.0,17453.0,0.07006]
[1673427617471,2.14256127,17454.0,17453.0,0.07006]
[1673427618485,2.31387791,17454.0,17453.0,0.07006]
[1673427619280,2.25858091,17454.0,17453.0,0.07]
[1673427619543,2.30280659,17454.0,17453.0,0.07]
[1673427621632,2.42984436,17454.0,17453.0,0.07]
[1673427621890,2.91956873,17454.0,17453.0,0.07]
[1673427622159,2.91957086,17454.0,17453.0,0.07]
[1673427622455,2.96582266,17454.0,17453.0,0.07]
[1673427622668,3.14965063,17454.0,17453.0,0.07]
[1673427623181,3.49297892,17454.0,17453.0,0.07]
[1673427623434,3.14965063,17454.0,17453.0,0.07]
[1673427624247,4.28021685,17454.0,17453.0,0.07]
[1673427624762,4.70928421,17454.0,17453.0,0.07]
[1673427625026,4.70927604,17454.0,17453.0,0.07]
[1673427626275,4.70928141,17454.0,17453.0,0.07]
[1673427626531,4.28021685,17454.0,17453.0,0.07]
[1673427626794,4.70919184,17454.0,17453.0,0.07]
[1673427630871,5.05229686,17454.0,17453.0,0.07]
[1673427632136,4.70919184,17454.0,17453.0,0.07]
[1673427633938,3.56332384,17454.0,17453.0,0.07]
[1673427634200,4.70919184,17454.0,17453.0,0.07]
[1673427634457,5.05222851,17454.0,17453.0,0.07]
[1673427635268,5.05222851,17454.0,17453.0,0.06990259]
[1673427635504,4.70919184,17454.0,17453.0,0.06990259]
[1673427635757,5.05219448,17454.0,17453.0,0.06990259]
[1673427636769,5.05215887,17454.0,17453.0,0.06990259]
[1673427639020,5.10916895,17454.0,17453.0,0.06990259]
[1673427639302,5.05215887,17454.0,17453.0,0.06990259]
[1673427639796,5.10900818,17454.0,17453.0,0.06990259]
[1673427640054,5.05215887,17454.0,17453.0,0.06990259]
[1673427640593,4.56243237,17454.0,17453.0,0.06990259]
[1673427641679,5.05102463,17454.0,17453.0,0.06990259]
[1673427642637,5.05098453,17454.0,17453.0,0.06990259]
[1673427642885,4.7080576,17454.0,17453.0,0.06990259]
[1673427645506,4.06478971,17454.0,17453.0,0.07003395]
[1673427645784,4.06478971,17454.0,17453.0,0.06990259]
[1673427648709,4.1172932,17454.0,17453.0,0.06990259]
[1673427649740,3.7218576,17454.0,17453.0,0.06990259]
[1673427650686,3.29288261,17454.0,17453.0,0.06990259]
[1673427651716,3.72175837,17454.0,17453.0,0.06990259]
[1673427652716,3.29288261,17454.0,17453.0,0.06990259]
[1673427653219,2.80648503,17454.0,17453.0,0.06990259]
[1673427653995,3.19882809,17454.0,17453.0,0.06990259]
[1673427655557,3.25015174,17454.0,17453.0,0.06990259]
[1673427656302,3.19882809,17454.0,17453.0,0.06990259]
[1673427656805,3.71398298,17454.0,17453.0,0.06990259]
[1673427657811,3.77192233,17454.0,17453.0,0.06983914]
[1673427658060,3.71398298,17454.0,17453.0,0.06983914]
[1673427658617,3.76609397,17454.0,17453.0,0.06983914]
[1673427660141,3.25093908,17454.0,17453.0,0.06983914]
[1673427660886,3.76609397,17454.0,17453.0,0.06983914]
[1673427663472,2.85859602,17454.0,17453.0,0.06983914]
[1673427664273,2.85859602,17454.0,17453.0,0.0699705]
[1673427664274,1.69458103,17454.0,17453.0,0.0699705]
[1673427664787,1.69653116,17454.0,17453.0,0.0699705]
[1673427665051,1.03396221,17454.0,17453.0,0.0699705]
[1673427666823,1.03396221,17454.0,17453.0,0.06983914]
[1673427667083,1.69617143,17454.0,17453.0,0.06983914]
[1673427667417,1.99617143,17454.0,17453.0,0.06983914]
[1673427668897,1.69617143,17454.0,17453.0,0.06983914]
[1673427669405,1.03388144,17454.0,17453.0,0.06983914]
[1673427669946,0.86185611,17454.0,17453.0,0.06983914]
[1673427671205,0.6042602,17454.0,17453.0,0.06983914]
[1673427672744,0.2448372,17454.0,17453.0,0.06983914]
[1673427673010,0.6042602,17454.0,17453.0,0.06983914]
[1673427674582,0.86185611,17454.0,17453.0,0.06983914]
[1673427674843,0.86185611,17454.0,17453.0,0.0699705]
[1673427675108,0.86185611,17454.0,17453.0,0.06983914]
[1673427676394,1.20560588,17454.0,17453.0,0.06983914]
[1673427676640,1.03388144,17454.0,17453.0,0.06983914]
[1673427678946,1.33388144,17454.0,17453.0,0.0699705]
[1673427679200,1.33388144,17454.0,17453.0,0.06983914]
[1673427679680,1.76358468,17454.0,17453.0,0.06983914]
[1673427679900,1.50598877,17454.0,17453.0,0.06983914]
[1673427682146,1.33373757,17454.0,17453.0,0.06983914]
[1673427682429,1.03373757,17454.0,17453.0,0.0699705]
[1673427683182,1.03373757,17454.0,17453.0,0.06983914]
[1673427683439,1.03373757,17454.0,17453.0,0.0699705]
[1673427683694,1.03333757,17454.0,17453.0,0.0699705]
[1673427685757,0.86122946,17454.0,17453.0,0.0699705]
[1673427686800,0.86122946,17454.0,17453.0,0.06983914]
[1673427687278,0.86122946,17454.0,17453.0,0.0699705]
[1673427688591,0.60377742,17454.0,17453.0,0.0699705]
[1673427690135,0.24435442,17454.0,17453.0,0.0699705]
[1673427690405,0.07271276,17454.0,17453.0,0.0699705]
[1673427690677,0.24435442,17454.0,17453.0,0.0699705]
[1673427690903,0.07271276,17454.0,17453.0,0.0699705]
[1673427691953,0.02060177,17454.0,17453.0,0.3699705]
[1673427693089,0.02060177,17454.0,17453.0,0.0699705]
[1673427695099,0.02060177,17454.0,17453.0,0.3699705]
[1673427695630,0.02060177,17454.0,17453.0,0.0699705]
[1673427699063,0.02060177,17454.0,17453.0,0.06983914]
[1673427699624,0.6129007,17454.0,17453.0,0.06983914]
[1673427700136,0.87035274,17454.0,17453.0,0.06983914]
[1673427701165,0.51092974,17454.0,17453.0,0.06983914]
[1673427701683,0.87035274,17454.0,17453.0,0.06983914]
[1673427702683,0.87035274,17454.0,17453.0,0.0699705]
[1673427703347,0.87035274,17454.0,17453.0,0.06983914]
[1673427703906,0.87035274,17454.0,17453.0,0.0699705]
[1673427705381,0.6129007,17454.0,17453.0,0.0699705]
[1673427705630,0.6129007,17454.0,17453.0,0.06983914]
[1673427705883,0.87035274,17454.0,17453.0,0.06983914]
[1673427706423,1.04246085,17454.0,17453.0,0.06983914]
[1673427707185,1.04246085,17454.0,17453.0,0.0699705]
[1673427707433,1.04246085,17454.0,17453.0,0.06983914]
[1673427707702,0.87043769,17454.0,17453.0,0.06983914]
[1673427707947,1.04246085,17454.0,17453.0,0.06983914]
[1673427708200,1.04246085,17454.0,17453.0,0.0699705]
[1673427708447,1.04246085,17454.0,17453.0,0.06983914]
[1673427708706,1.214188,17454.0,17453.0,0.06983914]
[1673427708972,1.04246085,17454.0,17453.0,0.06983914]
[1673427709226,1.04246085,17454.0,17453.0,0.0699705]
[1673427709743,0.87044379,17454.0,17453.0,0.0699705]
[1673427709979,1.04246085,17454.0,17453.0,0.0699705]
[1673427711734,1.21419416,17454.0,17453.0,0.0699705]
[1673427711980,0.87044439,17454.0,17453.0,0.0699705]
[1673427713531,0.87044439,17454.0,17453.0,0.06983914]
[1673427717128,0.87044439,17454.0,17453.0,0.0699705]
[1673427717410,0.61299235,17454.0,17453.0,0.0699705]
[1673427718447,0.87044439,17454.0,17453.0,0.06983914]
[1673427719762,0.87044439,17454.0,17453.0,0.0699705]
[1673427720769,0.87044439,17454.0,17453.0,0.06983914]
[1673427721502,0.25356935,17454.0,17453.0,0.06983914]
[1673427722038,0.61299235,17454.0,17453.0,0.06983914]
[1673427722553,0.87044439,17454.0,17453.0,0.06983914]
[1673427723045,0.61299235,17454.0,17453.0,0.06983914]
[1673427724315,0.61299235,17454.0,17453.0,0.0699705]
[1673427726096,0.25356935,17454.0,17453.0,0.0699705]
[1673427726626,0.02060177,17454.0,17453.0,1.07866004]
[1673427726881,0.02060177,17454.0,17453.0,0.95020483]
[1673427727131,0.02060177,17454.0,17453.0,0.77866004]
[1673427731478,0.02060177,17454.0,17453.0,0.75195404]
[1673427733301,0.07878019,17454.0,17453.0,0.75195404]
[1673427733535,0.07878019,17454.0,17453.0,0.75182268]
[1673427736890,0.02060177,17454.0,17453.0,0.0432645]
[1673427737142,0.02060177,17454.0,17453.0,1.41952885]
[1673427737398,0.02060177,17454.0,17453.0,3.53190212]
[1673427737657,0.02060177,17454.0,17453.0,2.03626903]
[1673427737952,0.02060177,17454.0,17453.0,3.17198197]
[1673427738126,0.02060177,17454.0,17453.0,2.03626903]
[1673427738409,0.02060177,17454.0,17453.0,1.67684603]
[1673427738942,0.02060177,17454.0,17453.0,2.02590488]
[1673427739273,0.02060177,17454.0,17453.0,1.67684603]
[1673427739466,0.02060177,17454.0,17453.0,1.41952885]
[1673427741624,0.02060177,17454.0,17453.0,1.71952885]
[1673427742671,0.02060177,17454.0,17453.0,1.88372885]
[1673427743714,0.02060177,17454.0,17453.0,2.81611885]
[1673427744477,0.02060177,17454.0,17453.0,2.45669585]
[1673427744981,0.02060177,17454.0,17453.0,3.06298964]
[1673427745225,0.02060177,17454.0,17453.0,4.20905368]
[1673427745480,0.02060177,17454.0,17453.0,2.71401303]
[1673427745732,0.02060177,17454.0,17453.0,2.45669585]
[1673427746516,0.02060177,17454.0,17453.0,1.88372885]
[1673427749004,0.02060177,17454.0,17453.0,2.71401303]
[1673427749231,0.02060177,17454.0,17453.0,2.45669585]
[1673427749782,0.02060177,17454.0,17453.0,1.58372885]
[1673427750033,0.02060177,17454.0,17453.0,2.15669585]
[1673427750286,0.02060177,17454.0,17453.0,2.41401303]
[1673427750534,0.02060177,17454.0,17453.0,2.81444714]
[1673427750784,0.02060177,17454.0,17453.0,2.41401303]
[1673427751297,0.02060177,17454.0,17453.0,2.8149646]
[1673427751553,0.02060177,17454.0,17453.0,2.41401303]
[1673427751820,0.02060177,17454.0,17453.0,1.58372885]
[1673427752358,0.02060177,17454.0,17453.0,1.84104603]
[1673427752590,0.02052925,17454.0,17453.0,1.67684603]
[1673427753067,0.02052925,17454.0,17453.0,2.12259174]
[1673427753321,0.02052925,17454.0,17453.0,1.67684603]
[1673427753571,0.02052925,17454.0,17453.0,1.41952885]
[1673427753826,0.02052925,17454.0,17453.0,2.12259653]
[1673427754349,0.02052925,17454.0,17453.0,1.67684603]
[1673427754607,0.02052925,17454.0,17453.0,0.84650761]
[1673427755881,0.02052925,17454.0,17453.0,2.1226044]
[1673427756129,0.02052925,17454.0,17453.0,3.62809899]
[1673427756385,0.02052925,17454.0,17453.0,3.0549944]
[1673427756656,0.02052925,17454.0,17453.0,2.6955714]
[1673427756952,0.02052925,17454.0,17453.0,4.01318456]
[1673427757160,0.02052925,17454.0,17453.0,4.37260756]
[1673427757906,0.02052925,17454.0,17453.0,4.20085956]
[1673427758154,0.02052925,17454.0,17453.0,3.26846956]
[1673427758399,0.02052925,17454.0,17453.0,2.12240118]
[1673427758659,0.02052925,17454.0,17453.0,0.84630439]
[1673427761085,0.02052925,17454.0,17453.0,1.14630439]
[1673427761363,0.02052925,17454.0,17453.0,0.84630439]
[1673427765367,0.02052925,17454.0,17453.0,1.10362157]
[1673427766194,0.02052925,17454.0,17453.0,1.86467984]
[1673427767725,0.02052925,17454.0,17453.0,1.56467984]
[1673427768236,0.02052925,17454.0,17453.0,1.86467984]
[1673427770783,0.02052925,17454.0,17453.0,3.01079094]
[1673427771277,0.02052925,17454.0,17453.0,3.35388051]
[1673427771542,0.02052925,17454.0,17453.0,3.01091148]
[1673427772056,0.02052925,17454.0,17453.0,3.18253894]
[1673427772305,0.02052925,17454.0,17453.0,3.01091102]
[1673427773085,0.02052925,17454.0,17453.0,3.35400059]
[1673427773603,0.02052925,17454.0,17453.0,3.18253894]
[1673427780419,0.02052925,17454.0,17453.0,3.3542691]
[1673427783408,0.02052925,17454.0,17453.0,2.88251283]
[1673427787511,0.02052925,17454.0,17453.0,3.05405343]
[1673427787760,0.02052925,17454.0,17453.0,2.71096386]
[1673427788713,0.02052925,17454.0,17453.0,2.71096209]
[1673427789910,0.02052925,17454.0,17453.0,2.88251283]
[1673427790375,0.02052925,17454.0,17453.0,2.71096557]
[1673427790649,0.02052925,17454.0,17453.0,2.88251283]
[1673427792845,0.02052925,17454.0,17453.0,1.5648577]
[1673427793340,0.02052925,17454.0,17453.0,2.88251887]
[1673427793591,0.02052925,17454.0,17453.0,3.4554885]
[1673427796357,0.02052925,17454.0,17453.0,3.62724214]
[1673427797092,0.02045801,17454.0,17453.0,4.20020914]
[1673427797342,0.02045801,17454.0,17453.0,4.21654257]
[1673427798396,0.02045801,17454.0,17453.0,4.20010942]
[1673427798653,0.02045801,17454.0,17453.0,4.55953242]
[1673427799126,0.02045801,17454.0,17453.0,4.20010942]
[1673427803678,0.02045801,17454.0,17453.0,3.85711957]
[1673427804468,0.02045801,17454.0,17453.0,4.20004014]
[1673427808000,0.02045801,17454.0,17453.0,4.55946314]
[1673427808330,0.02045801,17454.0,17453.0,4.55944077]
[1673427808779,0.02045801,17454.0,17453.0,4.21654257]
[1673427809017,0.02045801,17454.0,17453.0,4.20001452]
[1673427809272,0.02045801,17454.0,17453.0,4.21654257]